[Event "44th Chess Olympiad Women 2022"]
[Site "Chennai"]
[Date "2022.08.02"]
[Round "5.18"]
[White "Petrova, Kristyna"]
[Black "Puuska, Heini"]
[Result "1-0"]
[ECO "C41"]
[WhiteElo "2238"]
[BlackElo "2010"]
[Annotator "NA RC"]
[PlyCount "121"]
[EventDate "2022.07.29"]
[EventType "team-tourn"]
[EventCountry "IND"]
[SourceTitle "playchess.com"]
[Source "ChessBase"]
[SourceQuality "1"]
[WhiteTeam "Czech Republic"]
[BlackTeam "Finland"]
[WhiteTeamCountry "CZE"]
[BlackTeamCountry "FIN"]
[TimeControl "40/5400+30:1800+30"]

1. Nf3 {[%emt 0:00:05]} d6 {[%emt 0:01:07]} 2. d4 {[%emt 0:02:56]} Nd7 {[%emt 0:00:35]} 3. e4 {[%emt 0:01:33]} e5 {[%emt 0:02:06]} 4. Nc3 {[%emt 0:00:45]} Ngf6 {[%emt 0:00:48]} 5. Bc4 {[%emt 0:01:12]} Be7 {[%emt 0:00:12]} 6. O-O {[%emt 0:01:09]} O-O {[%emt 0:00:19]} 7. Re1 {[%emt 0:01:10]} c6 {[%emt 0:00:51]} 8. a4 {[%emt 0:02:03]} h6 {[%emt 0:00:34]} 9. h3 {[%emt 0:01:01]} Re8 {[%emt 0:00:36]} 10. a5 {[%emt 0:06:21]} Qc7 {[%emt 0:03:03]} 11. Bf1 {[%emt 0:19:06]} b5 {[%emt 0:05:58]} 12. axb6 {[%emt 0:05:14]} Nxb6 {[%emt 0:01:08]} 13. b3 {[%emt 0:07:20]} exd4 {[%emt 0:06:26]} 14. Nxd4 {[%emt 0:00:50]} d5 {[%emt 0:00:49]} 15. exd5 {[%emt 0:02:38]} Nbxd5 {[%emt 0:04:17]} 16. Nxd5 {[%emt 0:01:40]} Nxd5 {[%emt 0:01:17]} 17. Ba3 {[%emt 0:16:10]} Bb7 {[%emt 0:04:32]} 18. Bxe7 {[%emt 0:01:25]} Rxe7 {[%emt 0:02:20]} 19. Qg4 {[%emt 0:03:19]} Nf6 {[%emt 0:05:58]} 20. Rxe7 {[%emt 0:01:52]} Qxe7 {[%emt 0:00:07]} 21. Nf5 {[%emt 0:00:49]} Qf8 {[%emt 0:08:01]} 22. Nxh6+ {[%emt 0:06:17]} Kh8 {[%emt 0:09:10]} 23. Qh4 {[%emt 0:00:55]} gxh6 {[%emt 0:02:04]} 24. Qxf6+ {[%emt 0:00:06]} Qg7 {[%emt 0:00:59]} 25. Qxg7+ {[%emt 0:00:39]} Kxg7 {[%emt 0:00:06]} 26. Ba6 {[%emt 0:04:52]} Bxa6 {[%emt 0:00:28]} 27. Rxa6 {[%emt 0:00:02]} Rd8 {[%emt 0:00:35]} 28. Rxc6 {[%emt 0:00:21]} Rd1+ {[%emt 0:00:21]} 29. Kh2 {[%emt 0:00:03]} a5 {[%emt 0:00:30]} 30. Rc4 {[%emt 0:04:49]} Kf6 {[%emt 0:01:18]} 31. Kg3 {[%emt 0:00:09]} Rd5 {[%emt 0:03:15]} 32. Kf3 {[%emt 0:00:37]} h5 {[%emt 0:02:06]} 33. g3 {[%emt 0:00:46]} Ke5 {[%emt 0:01:28]} 34. Ke3 {[%emt 0:00:44]} Rb5 {[%emt 0:01:11]} 35. Re4+ {[%emt 0:01:27]} Kf6 {[%emt 0:01:34]} 36. Rf4+ {[%emt 0:00:49]} Ke6 {[%emt 0:00:34]} 37. Kd4 {[%emt 0:00:33]} Ke7 {[%emt 0:04:09]} 38. Kc4 {[%emt 0:00:58]} Re5 {[%emt 0:00:13]} 39. h4 {[%emt 0:03:11]} Ke6 {[%emt 0:01:38]} 40. Kd3 {[%emt 0:02:03]} Rb5 {[%emt 0:00:49]} 41. Kc3 {[%emt 0:31:54]} f6 {[%emt 0:38:43]} 42. Kb2 {[%emt 0:00:00]} Re5 {[%emt 0:00:00]} 43. Ka3 {[%emt 0:00:00]} Ke7 {[%emt 0:00:00]} 44. Ka4 {[%emt 0:00:00]} Ke6 {[%emt 0:00:00]} 45. Rf3 {[%emt 0:00:00]} Rc5 {[%emt 0:00:00]} 46. c4 {[%emt 0:00:00]} Ke5 {[%emt 0:00:00]} 47. Rd3 {[%emt 0:00:00]} f5 {[%emt 0:00:00]} 48. Rd5+ {[%emt 0:00:00]} Rxd5 {[%emt 0:00:00]} 49. cxd5 {[%emt 0:00:10]} Kxd5 {[%emt 0:00:00]} 50. Kxa5 {[%emt 0:00:00]} Ke4 {[%emt 0:00:00]} 51. b4 {[%emt 0:00:00]} Kf3 {[%emt 0:00:00]} 52. b5 {[%emt 0:00:00]} Kxf2 {[%emt 0:00:00]} 53. b6 {[%emt 0:00:00]} Kxg3 {[%emt 0:00:00]} 54. b7 {[%emt 0:00:00]} Kxh4 {[%emt 0:00:00]} 55. b8=Q {[%emt 0:00:08]} Kh3 {[%emt 0:00:00]} 56. Qf4 {[%emt 0:00:00]} h4 {[%emt 0:00:00]} 57. Kb4 {[%emt 0:00:00]} Kg2 {[%emt 0:00:00]} 58. Qxh4 {[%emt 0:00:00]} Kf3 {[%emt 0:00:00]} 59. Qh3+ {[%emt 0:00:00]} Ke4 {[%emt 0:00:00]} 60. Kc4 {[%emt 0:00:00]} f4 {[%emt 0:00:00]} 61. Qd3+ {[%emt 0:00:00]} 1-0

[Event "44th Chess Olympiad Women 2022"]
[Site "Chennai"]
[Date "2022.08.02"]
[Round "5.18"]
[White "Paasikangas, Johanna"]
[Black "Worek, Joanna"]
[Result "1/2-1/2"]
[ECO "B13"]
[WhiteElo "2155"]
[BlackElo "2280"]
[Annotator "NA RC"]
[PlyCount "101"]
[EventDate "2022.07.29"]
[EventType "team-tourn"]
[EventCountry "IND"]
[SourceTitle "playchess.com"]
[Source "ChessBase"]
[SourceQuality "1"]
[WhiteTeam "Finland"]
[BlackTeam "Czech Republic"]
[WhiteTeamCountry "FIN"]
[BlackTeamCountry "CZE"]
[TimeControl "40/5400+30:1800+30"]

1. d4 {[%emt 0:00:04]} d5 {[%emt 0:00:05]} 2. Bf4 {[%emt 0:00:22]} c5 {[%emt 0:00:27]} 3. Nc3 {[%emt 0:06:39]} Nf6 {[%emt 0:06:04]} 4. e3 {[%emt 0:02:15]} cxd4 {[%emt 0:01:34]} 5. exd4 {[%emt 0:00:19]} Bf5 {[%emt 0:02:35]} 6. Nb5 {[%emt 0:05:28]} Na6 {[%emt 0:00:12]} 7. c3 {[%emt 0:00:14]} h6 {[%emt 0:05:26]} 8. h3 {[%emt 0:08:39]} g5 {[%emt 0:03:15]} 9. Bh2 {[%emt 0:07:35]} Bg7 {[%emt 0:00:13]} 10. g4 {[%emt 0:11:42]} Bg6 {[%emt 0:09:06]} 11. Bd3 {[%emt 0:06:01]} Qb6 {[%emt 0:00:09]} 12. Qe2 {[%emt 0:09:12]} Bxd3 {[%emt 0:05:34]} 13. Qxd3 {[%emt 0:00:06]} Rc8 {[%emt 0:00:11]} 14. a4 {[%emt 0:05:43]} Ne4 {[%emt 0:20:56]} 15. f3 {[%emt 0:02:51]} Nf6 {[%emt 0:00:40]} 16. Ne2 {[%emt 0:00:32]} Ra8 {[%emt 0:01:14]} 17. O-O {[%emt 0:04:58]} Nd7 {[%emt 0:03:52]} 18. f4 {[%emt 0:03:18]} h5 {[%emt 0:17:25]} 19. fxg5 {[%emt 0:01:46]} hxg4 {[%emt 0:00:23]} 20. Qf5 {[%emt 0:05:11]} Qe6 {[%emt 0:01:22]} 21. Qxe6 {[%emt 0:03:04]} fxe6 {[%emt 0:00:02]} 22. hxg4 {[%emt 0:03:25]} Rh4 {[%emt 0:00:50]} 23. Rf4 {[%emt 0:00:54]} Nf8 {[%emt 0:02:43]} 24. Bg3 {[%emt 0:00:17]} Rh7 {[%emt 0:00:02]} 25. Rf3 {[%emt 0:01:56]} Ng6 {[%emt 0:00:33]} 26. Nf4 {[%emt 0:01:33]} Nxf4 {[%emt 0:01:09]} 27. Rxf4 {[%emt 0:00:12]} Kd7 {[%emt 0:02:45]} 28. Re1 {[%emt 0:00:51]} Bh8 {[%emt 0:02:17]} 29. Kg2 {[%emt 0:00:32]} Rg8 {[%emt 0:00:46]} 30. Nxa7 {[%emt 0:01:35]} Rxg5 {[%emt 0:00:07]} 31. Nb5 {[%emt 0:00:49]} e5 {[%emt 0:00:45]} 32. dxe5 {[%emt 0:03:27]} Bxe5 {[%emt 0:00:08]} 33. Rf5 {[%emt 0:00:54]} Bxg3 {[%emt 0:01:19]} 34. Kxg3 {[%emt 0:00:05]} Rxf5 {[%emt 0:00:07]} 35. gxf5 {[%emt 0:00:09]} Nc5 {[%emt 0:00:04]} 36. a5 {[%emt 0:01:32]} Ne4+ {[%emt 0:04:40]} 37. Kf4 {[%emt 0:01:02]} Rh2 {[%emt 0:00:07]} 38. b4 {[%emt 0:00:48]} Rh4+ {[%emt 0:08:15]} 39. Ke5 {[%emt 0:01:28]} Nf6 {[%emt 0:00:11]} 40. Nd4 {[%emt 0:00:48]} Rh3 {[%emt 0:00:17]} 41. Ne2 {[%emt 0:32:01]} Rf3 {[%emt 0:05:53]} 42. b5 {[%emt 0:00:00]} Re3+ {[%emt 0:04:51]} 43. Kd4 {[%emt 0:00:00]} Re4+ {[%emt 0:00:04]} 44. Kd3 {[%emt 0:00:00]} Ra4 {[%emt 0:01:52]} 45. Nd4 {[%emt 0:00:00]} Rxa5 {[%emt 0:00:23]} 46. Re5 {[%emt 0:00:00]} Ra1 {[%emt 0:03:22]} 47. Kc2 {[%emt 0:00:00]} Rf1 {[%emt 0:01:07]} 48. Kb3 {[%emt 0:00:00]} Kd6 {[%emt 0:02:18]} 49. Re6+ {[%emt 0:00:00]} Kd7 {[%emt 0:00:01]} 50. Re5 {[%emt 0:00:00]} Kd6 {[%emt 0:00:05]} 51. Re6+ {[%emt 0:00:00]} 1/2-1/2

[Event "44th Chess Olympiad Women 2022"]
[Site "Chennai"]
[Date "2022.08.02"]
[Round "5.18"]
[White "Norlamo, Sarabella"]
[Black "Koubova, Anna Marie"]
[Result "0-1"]
[ECO "E18"]
[WhiteElo "1925"]
[BlackElo "2115"]
[Annotator "NA RC"]
[PlyCount "72"]
[EventDate "2022.07.29"]
[EventType "team-tourn"]
[EventCountry "IND"]
[SourceTitle "playchess.com"]
[Source "ChessBase"]
[SourceQuality "1"]
[WhiteTeam "Finland"]
[BlackTeam "Czech Republic"]
[WhiteTeamCountry "FIN"]
[BlackTeamCountry "CZE"]
[TimeControl "40/5400+30:1800+30"]

1. d4 Nf6 2. c4 e6 3. Nf3 b6 4. g3 Bb7 5. Bg2 Be7 6. O-O O-O 7. Re1 d6 8. Nc3 c5 9. d5 exd5 10. cxd5 b5 11. e4 b4 12. Nb1 Nbd7 13. Nbd2 Nb6 14. a3 a5 15. b3 Nfd7 16. Bb2 Bf6 17. Qc2 Re8 18. Bxf6 Qxf6 19. a4 Ba6 20. Bf1 Bxf1 21. Kxf1 c4 22. bxc4 Nc5 23. Kg2 Nbxa4 24. Rac1 Nc3 25. Ng1 Qg6 26. f3 a4 27. Ne2 Nxe2 28. Rxe2 Qf6 29. Rb1 b3 30. Qc1 a3 31. Rxb3 a2 32. e5 Nxb3 33. Nxb3 Rxe5 34. Rf2 Ree8 35. Na1 Reb8 36. Qe1 Rb1 0-1

[Event "44th Chess Olympiad Women 2022"]
[Site "Chennai"]
[Date "2022.08.02"]
[Round "5.19"]
[White "Yakubbaeva, Nilufar"]
[Black "Vo, Thi Kim Phung"]
[Result "0-1"]
[ECO "D35"]
[WhiteElo "2299"]
[BlackElo "2333"]
[Annotator "RC"]
[PlyCount "78"]
[EventDate "2022.07.29"]
[EventType "team-tourn"]
[EventCountry "IND"]
[SourceTitle "playchess.com"]
[Source "ChessBase"]
[SourceQuality "1"]
[WhiteTeam "Uzbekistan"]
[BlackTeam "Vietnam"]
[WhiteTeamCountry "UZB"]
[BlackTeamCountry "VIE"]
[TimeControl "40/5400+30:1800+30"]

1. c4 {[%emt 0:00:13]} e6 {[%emt 0:00:26]} 2. Nc3 {[%emt 0:00:31]} d5 {[%emt 0:00:22]} 3. cxd5 {[%emt 0:01:37]} exd5 {[%emt 0:00:09]} 4. d4 {[%emt 0:00:04]} Nf6 {[%emt 0:00:15]} 5. Bg5 {[%emt 0:00:29]} Be7 {[%emt 0:00:23]} 6. e3 {[%emt 0:01:03]} c6 {[%emt 0:00:11]} 7. Bd3 {[%emt 0:00:27]} h6 {[%emt 0:00:56]} 8. Bh4 {[%emt 0:00:16]} O-O {[%emt 0:00:13]} 9. Nge2 {[%emt 0:02:17]} Re8 {[%emt 0:00:52]} 10. O-O {[%emt 0:02:45]} Nbd7 {[%emt 0:00:33]} 11. Rc1 {[%emt 0:06:14]} Bd6 {[%emt 0:04:45]} 12. Ng3 {[%emt 0:08:21]} Nf8 {[%emt 0:02:43]} 13. Nf5 {[%emt 0:04:19]} Bxf5 {[%emt 0:00:23]} 14. Bxf5 {[%emt 0:00:11]} Ng6 {[%emt 0:00:33]} 15. Bxg6 {[%emt 0:04:50]} fxg6 {[%emt 0:00:34]} 16. Bg3 {[%emt 0:08:40]} Bxg3 {[%emt 0:04:36]} 17. hxg3 {[%emt 0:00:06]} Qd7 {[%emt 0:01:44]} 18. Ne2 {[%emt 0:11:40]} g5 {[%emt 0:05:28]} 19. Rc2 {[%emt 0:03:00]} Re7 {[%emt 0:02:48]} 20. Nc1 {[%emt 0:00:47]} Rf8 {[%emt 0:00:23]} 21. Nd3 {[%emt 0:00:56]} Ng4 {[%emt 0:00:12]} 22. a4 {[%emt 0:14:22]} Qf5 {[%emt 0:02:54]} 23. b4 {[%emt 0:07:44]} Rxe3 {[%emt 0:05:33]} 24. Ne5 {[%emt 0:00:23]} Re4 {[%emt 0:00:21]} 25. Nxg4 {[%emt 0:05:15]} Rxg4 {[%emt 0:00:21]} 26. f3 {[%emt 0:03:42]} Rxg3 {[%emt 0:03:30]} 27. Re2 {[%emt 0:04:52]} h5 {[%emt 0:00:46]} 28. Re7 {[%emt 0:03:10]} h4 {[%emt 0:01:54]} 29. Qe1 {[%emt 0:01:25]} Qf6 {[%emt 0:00:53]} 30. Rxb7 {[%emt 0:01:52]} Qxd4+ {[%emt 0:04:33]} 31. Kh1 {[%emt 0:00:25]} Qf6 {[%emt 0:09:48]} 32. Rxa7 {[%emt 0:02:19]} g4 {[%emt 0:00:39]} 33. f4 {[%emt 0:00:54]} Ra3 {[%emt 0:04:10]} 34. Qd1 {[%emt 0:01:26]} h3 {[%emt 0:02:47]} 35. Qxg4 {[%emt 0:00:18]} hxg2+ {[%emt 0:00:07]} 36. Kxg2 {[%emt 0:00:07]} Ra2+ {[%emt 0:00:09]} 37. Kg3 {[%emt 0:01:04]} Qc3+ {[%emt 0:01:14]} 38. Qf3 {[%emt 0:00:40]} Qxb4 {[%emt 0:02:18]} 39. Rg1 {[%emt 0:00:45]} Qd4 {[%emt 0:02:04]} 0-1

[Event "44th Chess Olympiad Women 2022"]
[Site "Chennai"]
[Date "2022.08.02"]
[Round "5.19"]
[White "Hoang, Thi Bao Tram"]
[Black "Omonova, Umida"]
[Result "1-0"]
[ECO "A07"]
[WhiteElo "2288"]
[BlackElo "2195"]
[Annotator "NA RC"]
[PlyCount "77"]
[EventDate "2022.07.29"]
[EventType "team-tourn"]
[EventCountry "IND"]
[SourceTitle "playchess.com"]
[Source "ChessBase"]
[SourceQuality "1"]
[WhiteTeam "Vietnam"]
[BlackTeam "Uzbekistan"]
[WhiteTeamCountry "VIE"]
[BlackTeamCountry "UZB"]
[TimeControl "40/5400+30:1800+30"]

1. Nf3 {[%emt 0:00:17]} d5 {[%emt 0:00:09]} 2. g3 {[%emt 0:00:33]} Bg4 {[%emt 0:00:40]} 3. Bg2 {[%emt 0:01:06]} Nd7 {[%emt 0:00:22]} 4. O-O {[%emt 0:02:26]} e5 {[%emt 0:01:52]} 5. d3 {[%emt 0:01:23]} Ngf6 {[%emt 0:00:27]} 6. h3 {[%emt 0:02:46]} Bh5 {[%emt 0:03:30]} 7. Nh4 {[%emt 0:06:06]} c6 {[%emt 0:04:18]} 8. Nf5 {[%emt 0:08:39]} Bg6 {[%emt 0:01:58]} 9. e4 {[%emt 0:00:11]} Bxf5 {[%emt 0:01:01]} 10. exf5 {[%emt 0:00:08]} Qc7 {[%emt 0:01:07]} 11. c4 {[%emt 0:01:03]} dxc4 {[%emt 0:05:20]} 12. dxc4 {[%emt 0:00:12]} Bc5 {[%emt 0:04:06]} 13. Nd2 {[%emt 0:05:57]} Rd8 {[%emt 0:09:46]} 14. Nb3 {[%emt 0:03:03]} Bb6 {[%emt 0:07:03]} 15. Qe2 {[%emt 0:06:56]} Nc5 {[%emt 0:06:06]} 16. Be3 {[%emt 0:05:43]} Nxb3 {[%emt 0:07:12]} 17. axb3 {[%emt 0:00:16]} Nd7 {[%emt 0:09:18]} 18. Qg4 {[%emt 0:12:47]} Kf8 {[%emt 0:07:04]} 19. Rfe1 {[%emt 0:08:30]} f6 {[%emt 0:03:11]} 20. b4 {[%emt 0:00:45]} h5 {[%emt 0:02:50]} 21. Qe2 {[%emt 0:05:30]} Bxe3 {[%emt 0:03:02]} 22. Qxe3 {[%emt 0:00:13]} Nb6 {[%emt 0:04:16]} 23. Qc5+ {[%emt 0:05:10]} Kg8 {[%emt 0:01:37]} 24. b5 {[%emt 0:02:30]} Kh7 {[%emt 0:01:37]} 25. Rxa7 {[%emt 0:01:11]} Nc8 {[%emt 0:01:46]} 26. Raa1 {[%emt 0:05:57]} Nd6 {[%emt 0:03:39]} 27. bxc6 {[%emt 0:00:46]} bxc6 {[%emt 0:00:04]} 28. g4 {[%emt 0:02:55]} hxg4 {[%emt 0:01:37]} 29. hxg4 {[%emt 0:00:05]} e4 {[%emt 0:00:04]} 30. Ra6 {[%emt 0:01:37]} Rc8 {[%emt 0:02:37]} 31. Ra7 {[%emt 0:02:36]} Qb8 {[%emt 0:00:36]} 32. Rd7 {[%emt 0:00:09]} Rhd8 {[%emt 0:00:25]} 33. Rxd8 {[%emt 0:00:19]} Rxd8 {[%emt 0:00:01]} 34. Qxc6 {[%emt 0:01:10]} Rc8 {[%emt 0:00:51]} 35. Qd5 {[%emt 0:01:43]} Nxc4 {[%emt 0:00:23]} 36. Qxe4 {[%emt 0:01:30]} Qxb2 {[%emt 0:00:20]} 37. g5 {[%emt 0:00:23]} Ne5 {[%emt 0:03:32]} 38. Qh4+ {[%emt 0:00:24]} Kg8 {[%emt 0:00:06]} 39. Bd5+ {[%emt 0:00:09]} 1-0

[Event "44th Chess Olympiad Women 2022"]
[Site "Chennai"]
[Date "2022.08.02"]
[Round "5.19"]
[White "Bach, Ngoc Thuy Duong"]
[Black "Malikova, Marjona"]
[Result "1-0"]
[ECO "E35"]
[WhiteElo "2192"]
[BlackElo "1756"]
[Annotator "RC"]
[PlyCount "113"]
[EventDate "2022.07.29"]
[EventType "team-tourn"]
[EventCountry "IND"]
[SourceTitle "playchess.com"]
[Source "ChessBase"]
[SourceQuality "1"]
[WhiteTeam "Vietnam"]
[BlackTeam "Uzbekistan"]
[WhiteTeamCountry "VIE"]
[BlackTeamCountry "UZB"]
[TimeControl "40/5400+30:1800+30"]

1. d4 {[%emt 0:00:08]} Nf6 {[%emt 0:00:21]} 2. c4 {[%emt 0:00:12]} e6 {[%emt 0:00:06]} 3. Nc3 {[%emt 0:03:32]} Bb4 {[%emt 0:00:26]} 4. Qc2 {[%emt 0:01:44]} d5 {[%emt 0:00:57]} 5. cxd5 {[%emt 0:00:51]} exd5 {[%emt 0:00:16]} 6. Bg5 {[%emt 0:00:27]} O-O {[%emt 0:00:37]} 7. e3 {[%emt 0:03:02]} h6 {[%emt 0:00:45]} 8. Bxf6 {[%emt 0:04:06]} Qxf6 {[%emt 0:00:27]} 9. a3 {[%emt 0:00:29]} Bf5 {[%emt 0:11:57]} 10. Qb3 {[%emt 0:06:02]} Bxc3+ {[%emt 0:01:20]} 11. Qxc3 {[%emt 0:02:43]} Rc8 {[%emt 0:05:33]} 12. Ne2 {[%emt 0:06:45]} Nd7 {[%emt 0:04:51]} 13. b4 {[%emt 0:04:07]} a5 {[%emt 0:03:43]} 14. Ng3 {[%emt 0:02:52]} Bg6 {[%emt 0:12:00]} 15. Rc1 {[%emt 0:04:16]} axb4 {[%emt 0:02:22]} 16. axb4 {[%emt 0:01:27]} Ra2 {[%emt 0:03:48]} 17. Be2 {[%emt 0:00:09]} h5 {[%emt 0:04:42]} 18. Qb3 {[%emt 0:08:15]} Rca8 {[%emt 0:02:05]} 19. Qxd5 {[%emt 0:10:07]} h4 {[%emt 0:06:31]} 20. Nh5 {[%emt 0:02:53]} Qe7 {[%emt 0:12:07]} 21. O-O {[%emt 0:10:24]} Rxe2 {[%emt 0:02:53]} 22. Rxc7 {[%emt 0:00:52]} Rd8 {[%emt 0:09:05]} 23. Nf4 {[%emt 0:00:33]} Be4 {[%emt 0:01:13]} 24. Qb3 {[%emt 0:00:32]} Rd2 {[%emt 0:03:03]} 25. f3 {[%emt 0:00:57]} Bd3 {[%emt 0:04:18]} 26. Re1 {[%emt 0:08:03]} Bb5 {[%emt 0:00:56]} 27. Qc3 {[%emt 0:01:38]} Ra2 {[%emt 0:01:04]} 28. Rxb7 {[%emt 0:00:20]} Qg5 {[%emt 0:01:58]} 29. Kh1 {[%emt 0:01:31]} Ba6 {[%emt 0:02:08]} 30. Rc7 {[%emt 0:01:39]} Nb6 {[%emt 0:00:40]} 31. Qb3 {[%emt 0:00:58]} Nd5 {[%emt 0:00:45]} 32. Rc5 {[%emt 0:02:48]} Rd2 {[%emt 0:01:57]} 33. Rxd5 {[%emt 0:03:09]} Rxd5 {[%emt 0:00:05]} 34. Qxd5 {[%emt 0:00:15]} Qxd5 {[%emt 0:00:46]} 35. Nxd5 {[%emt 0:00:03]} h3 {[%emt 0:00:05]} 36. gxh3 {[%emt 0:01:03]} Bb7 {[%emt 0:00:08]} 37. e4 {[%emt 0:00:17]} Rxd4 {[%emt 0:00:08]} 38. Ne3 {[%emt 0:03:28]} Rxb4 {[%emt 0:00:22]} 39. Kg2 {[%emt 0:00:08]} Rb6 {[%emt 0:00:52]} 40. Kg3 {[%emt 0:00:53]} Kh7 {[%emt 0:00:50]} 41. h4 {[%emt 0:30:14]} Rb3 {[%emt 0:30:58]} 42. Kf4 {[%emt 0:00:46]} Rb2 {[%emt 0:00:46]} 43. Rc1 {[%emt 0:01:38]} Ba6 {[%emt 0:00:00]} 44. Rc7 {[%emt 0:00:00]} Rb7 {[%emt 0:00:00]} 45. Rc5 {[%emt 0:00:00]} Be2 {[%emt 0:00:00]} 46. h5 {[%emt 0:00:00]} Rb5 {[%emt 0:00:00]} 47. Rc2 {[%emt 0:00:00]} Bd3 {[%emt 0:00:00]} 48. Rc7 {[%emt 0:00:00]} Rxh5 {[%emt 0:00:00]} 49. Ng4 {[%emt 0:00:00]} Kg8 {[%emt 0:00:00]} 50. Ne5 {[%emt 0:00:00]} Be2 {[%emt 0:00:00]} 51. Nxf7 {[%emt 0:00:00]} Rxh2 {[%emt 0:00:00]} 52. Ng5 {[%emt 0:00:00]} g6 {[%emt 0:00:00]} 53. Ke5 {[%emt 0:00:00]} Bd3 {[%emt 0:00:00]} 54. Kf6 {[%emt 0:00:00]} Rc2 {[%emt 0:00:00]} 55. Rg7+ {[%emt 0:00:00]} Kf8 {[%emt 0:00:00]} 56. Ne6+ {[%emt 0:00:00]} Ke8 {[%emt 0:00:00]} 57. Re7# {[%emt 0:00:00]} 1-0

[Event "44th Chess Olympiad Women 2022"]
[Site "Chennai"]
[Date "2022.08.02"]
[Round "5.19"]
[White "Bobomurodova, Maftuna"]
[Black "Nguyen, Thi Mai Hung"]
[Result "1/2-1/2"]
[ECO "C08"]
[WhiteElo "1914"]
[BlackElo "2223"]
[Annotator "NA RC"]
[PlyCount "83"]
[EventDate "2022.07.29"]
[EventType "team-tourn"]
[EventCountry "IND"]
[SourceTitle "playchess.com"]
[Source "ChessBase"]
[SourceQuality "1"]
[WhiteTeam "Uzbekistan"]
[BlackTeam "Vietnam"]
[WhiteTeamCountry "UZB"]
[BlackTeamCountry "VIE"]
[TimeControl "40/5400+30:1800+30"]

1. e4 {[%emt 0:00:16]} e6 {[%emt 0:00:10]} 2. d4 {[%emt 0:00:09]} d5 {[%emt 0:00:07]} 3. Nd2 {[%emt 0:00:15]} c5 {[%emt 0:00:27]} 4. exd5 {[%emt 0:00:54]} exd5 {[%emt 0:00:40]} 5. Bb5+ {[%emt 0:04:53]} Bd7 {[%emt 0:00:23]} 6. Qe2+ {[%emt 0:03:22]} Be7 {[%emt 0:01:10]} 7. dxc5 {[%emt 0:07:20]} Nf6 {[%emt 0:00:32]} 8. Ngf3 {[%emt 0:02:39]} O-O {[%emt 0:01:06]} 9. O-O {[%emt 0:04:37]} Re8 {[%emt 0:06:46]} 10. Nb3 {[%emt 0:04:59]} Bxc5 {[%emt 0:07:17]} 11. Qd3 {[%emt 0:00:49]} Bb6 {[%emt 0:00:15]} 12. Bg5 {[%emt 0:02:29]} Nc6 {[%emt 0:06:43]} 13. c3 {[%emt 0:13:37]} a6 {[%emt 0:05:11]} 14. Bxc6 {[%emt 0:01:13]} bxc6 {[%emt 0:00:26]} 15. Rfe1 {[%emt 0:03:26]} a5 {[%emt 0:07:25]} 16. Rxe8+ {[%emt 0:08:08]} Bxe8 {[%emt 0:02:26]} 17. Nbd4 {[%emt 0:01:30]} Qd6 {[%emt 0:15:58]} 18. Nf5 {[%emt 0:03:28]} Qe6 {[%emt 0:01:24]} 19. N3d4 {[%emt 0:04:03]} Qe5 {[%emt 0:07:12]} 20. Qg3 {[%emt 0:04:26]} Qxg3 {[%emt 0:01:40]} 21. hxg3 {[%emt 0:01:50]} Ne4 {[%emt 0:08:00]} 22. Be3 {[%emt 0:03:35]} c5 {[%emt 0:06:08]} 23. Ne2 {[%emt 0:03:06]} Kf8 {[%emt 0:08:46]} 24. Nf4 {[%emt 0:04:49]} Bc6 {[%emt 0:04:06]} 25. f3 {[%emt 0:01:49]} Nf6 {[%emt 0:00:37]} 26. Nd3 {[%emt 0:00:45]} g6 {[%emt 0:02:35]} 27. Bh6+ {[%emt 0:02:17]} Ke8 {[%emt 0:00:16]} 28. Re1+ {[%emt 0:00:06]} Kd8 {[%emt 0:02:30]} 29. Bg5 {[%emt 0:04:18]} c4+ {[%emt 0:01:50]} 30. Kf1 {[%emt 0:03:01]} gxf5 {[%emt 0:01:21]} 31. Bxf6+ {[%emt 0:00:05]} Kc7 {[%emt 0:00:09]} 32. Nf4 {[%emt 0:02:43]} Bc5 {[%emt 0:01:50]} 33. Be7 {[%emt 0:00:40]} Bd6 {[%emt 0:00:06]} 34. Bxd6+ {[%emt 0:00:42]} Kxd6 {[%emt 0:00:02]} 35. Ne2 {[%emt 0:00:46]} Rb8 {[%emt 0:00:28]} 36. Rb1 {[%emt 0:00:17]} Bd7 {[%emt 0:01:32]} 37. Nd4 {[%emt 0:00:07]} Ke5 {[%emt 0:00:17]} 38. Re1+ {[%emt 0:00:29]} Kf6 {[%emt 0:00:16]} 39. Re2 {[%emt 0:00:18]} Rb7 {[%emt 0:00:19]} 40. Kf2 {[%emt 0:00:38]} Rb8 {[%emt 0:00:05]} 41. Kf1 {[%emt 0:30:05]} Rb7 {[%emt 0:30:30]} 42. Kf2 {[%emt 0:00:05]} 1/2-1/2